fUST/lending_fUST_20260410
["ID","MTS","AMOUNT","RATE_DAILY","PERIOD"]
[420201190,1775770257775,-574.77,0.00020273,18]
[420201191,1775770257784,-500.0,0.00020273,18]
[420201192,1775770257793,-563.09,0.00020273,18]
[420201193,1775770257802,-500.0,0.00020273,18]
[420201194,1775770257811,-500.0,0.00020273,18]
[420201195,1775770257819,-500.0,0.00020273,18]
[420201196,1775770257828,-500.0,0.00020273,18]
[420201197,1775770257837,-500.0,0.00020273,18]
[420201198,1775770257847,-546.12,0.00020273,18]
[420201199,1775770257856,-500.0,0.00020273,18]
[420201200,1775770257865,-500.0,0.00020273,18]
[420201201,1775770257874,-500.0,0.00020273,18]
[420201202,1775770257889,-500.0,0.00020273,18]
[420201203,1775770257898,-500.0,0.00020273,18]
[420201204,1775770257907,-500.0,0.00020273,18]
[420201205,1775770257921,-996.65,0.00020273,18]
[420201206,1775770257932,-500.0,0.00020273,18]
[420201207,1775770257941,-500.0,0.00020273,18]
[420201208,1775770257966,-500.0,0.00020273,18]
[420201209,1775770257993,-500.0,0.00020273,18]
[420201210,1775770258030,-500.0,0.00020273,18]
[420201211,1775770258057,-500.0,0.00020273,18]
[420201212,1775770258087,-1881.67,0.00020273,18]
[420201213,1775770258102,-500.0,0.00020273,18]
[420201214,1775770258115,-722.33,0.00020273,18]
[420201215,1775770258150,-500.0,0.00020273,18]
[420201216,1775770258159,-1289.64,0.00020273,18]
[420201217,1775770258172,-500.0,0.00020273,18]
[420201218,1775770258181,-569.16,0.00020273,18]
[420201219,1775770258195,-1517.21,0.00020273,18]
[420201220,1775770258204,-547.77,0.00020273,18]
[420201221,1775770258213,-500.0,0.00020273,7]
[420201222,1775770258224,-500.0,0.00020273,18]
[420201223,1775770258234,-1727.32,0.00020273,18]
[420201224,1775770258243,-500.0,0.00020273,18]
[420201225,1775770258255,-500.0,0.00020273,18]
[420201226,1775770258263,-619.16,0.00020273,18]
[420201227,1775770258272,-500.0,0.00020273,18]
[420201228,1775770258285,-664.09,0.00020273,18]
[420201229,1775770258294,-559.65,0.00020273,18]
[420201230,1775770258303,-1035.57,0.00020273,18]
[420201231,1775770258322,-795.69,0.00020273,18]
[420201232,1775770258331,-500.0,0.00020273,18]
[420201233,1775770258340,-500.0,0.00020273,18]
[420201234,1775770258354,-1031.6,0.00020273,18]
[420201235,1775770258368,-500.0,0.00020273,18]
[420201236,1775770258397,-500.0,0.00020273,18]
[420201237,1775770258429,-500.0,0.00020273,18]
[420201238,1775770258447,-500.0,0.00020273,18]
[420201239,1775770258456,-500.0,0.00020273,18]
[420201240,1775770258468,-500.0,0.00020273,18]
[420201241,1775770258486,-500.0,0.00020273,18]
[420201242,1775770258520,-508.54,0.00020273,18]
[420201243,1775770258537,-2083.33,0.00020273,18]
[420201244,1775770258586,-1034.43,0.00020273,18]
[420201245,1775770258653,-171.88187098,0.00020273,18]
[420201246,1775770258667,-500.0,0.00020273,18]
[420201247,1775770258691,-500.0,0.00020273,18]
[420201248,1775770258700,-955.78,0.00020273,18]
[420201249,1775770258711,-1446.98225982,0.00020273,18]
[420201250,1775770259087,-500.0,0.00019726,18]
[420201251,1775770259101,-500.0,0.0002,18]
[420201252,1775770259128,-1367.3153688,0.00020145,7]
[420201253,1775770259139,-659.18521373,0.00020145,7]
[420201254,1775770260368,-6233.0,0.00020145,7]
[420201255,1775770260382,-1053.25774018,0.00020273,18]
[420201256,1775770260415,-670.57,0.00020273,18]
[420201257,1775770260437,-1230.91,0.00020273,18]
[420201258,1775770260446,-891.67,0.00020273,18]
[420201259,1775770260461,-500.0,0.00020273,18]
[420201260,1775770260471,-579.77,0.00020273,18]
[420201261,1775770260485,-500.0,0.00020273,18]
[420201262,1775770260508,-760.8,0.00020273,18]
[420201263,1775770260520,-500.0,0.00020273,18]
[420201264,1775770260539,-500.0,0.00020273,18]
[420201265,1775770260549,-500.0,0.00020273,18]
[420201266,1775770260558,-648.37,0.00020273,18]
[420201267,1775770260577,-1953.06,0.00020273,18]
[420201268,1775770260597,-613.83,0.00020273,18]
[420201269,1775770260608,-906.12,0.00020273,18]
[420201270,1775770260624,-1542.87,0.00020273,18]
[420201271,1775770260643,-806.83,0.00020273,18]
[420201272,1775770260704,-1845.1,0.00020273,18]
[420201273,1775770260740,-551.98,0.00020273,18]
[420201274,1775770260758,-500.0,0.00020273,18]
[420201275,1775770260768,-506.84,0.00020273,18]
[420201276,1775770260786,-1742.41,0.00020273,18]
[420201277,1775770260795,-500.0,0.00020273,18]
[420201278,1775770260819,-829.59,0.00020273,18]
[420201279,1775770260828,-897.59,0.00020273,18]
[420201280,1775770260838,-4290.4,0.00020273,18]
[420201281,1775770260860,-500.0,0.00020273,18]
[420201282,1775770260869,-518.81522615,0.00020273,18]
[420201283,1775770260889,-831.37,0.00020273,18]
[420201284,1775770260900,-3424.6,0.00020273,18]
[420201285,1775770260922,-500.0,0.00020273,18]
[420201286,1775770260931,-553.5686186,0.00020273,18]
[420201287,1775770260950,-500.0,0.00020273,18]
[420201288,1775770260965,-200.0,0.00020273,2]
[420201289,1775770260989,-500.0,0.00020273,18]
[420201290,1775770260999,-500.0,0.00020273,18]
[420201291,1775770261021,-630.37745109,0.00020273,18]
[420201292,1775770261031,-500.0,0.00020273,18]
[420201293,1775770261043,-500.0,0.00020273,18]
[420201294,1775770261053,-500.0,0.00020273,18]
[420201295,1775770261063,-626.51503566,0.00020273,18]
[420201296,1775770261073,-571.64088627,0.00020273,18]
[420201297,1775770261083,-500.0,0.00020273,18]
[420201298,1775770261093,-985.21,0.00020273,18]
[420201299,1775770261103,-500.0,0.00020273,18]
[420201300,1775770261112,-500.0,0.00020273,18]
[420201301,1775770261121,-255.4695619,0.00020273,18]
[420201302,1775770261134,-714.5604381,0.00020273,18]
[420201303,1775770261144,-599.03,0.00020273,18]
[420201304,1775770261154,-500.0,0.00020273,18]
[420201305,1775770261164,-591.3,0.00020273,18]
[420201306,1775770261173,-500.0,0.00020273,18]
[420201307,1775770261183,-500.0,0.00020273,18]
[420201308,1775770261192,-500.0,0.00020273,18]
[420201309,1775770261202,-500.0,0.00020273,18]
[420201310,1775770261216,-924.01,0.00020273,18]
[420201311,1775770261229,-500.0,0.00020273,18]
[420201312,1775770261241,-500.0,0.00020273,18]
[420201313,1775770261251,-649.88,0.00020273,18]
[420201314,1775770261275,-500.0,0.00020273,18]
[420201315,1775770261294,-567.06,0.00020273,18]
[420201316,1775770261315,-500.0,0.00020273,18]
[420201317,1775770261338,-748.65,0.00020273,18]
[420201318,1775770261349,-500.0,0.00020273,18]
[420201319,1775770261405,-635.58,0.00020273,18]
[420201320,1775770261452,-500.0,0.00020273,18]
[420201321,1775770261467,-500.0,0.00020273,18]
[420201322,1775770261478,-500.0,0.00020273,18]
[420201323,1775770261503,-960.01,0.00020273,18]
[420201324,1775770261512,-500.0,0.00020273,18]
[420201325,1775770261527,-500.0,0.00020273,18]
[420201326,1775770261542,-607.23,0.00020273,18]
[420201327,1775770261564,-500.0,0.00020273,18]
[420201328,1775770261574,-974.07,0.00020273,18]
[420201329,1775770261593,-500.0,0.00020273,18]
[420201330,1775770261608,-873.7,0.00020273,18]
[420201331,1775770261632,-732.26,0.00020273,18]
[420201332,1775770261643,-500.0,0.00020273,18]
[420201333,1775770261664,-1881.8,0.00020273,18]
[420201334,1775770261674,-500.0,0.00020273,18]
[420201335,1775770261702,-500.0,0.00020273,18]
[420201336,1775770261720,-500.0,0.00020273,18]
[420201337,1775770261744,-2518.85,0.00020273,18]
[420201338,1775770261794,-500.0,0.00020273,18]
[420201339,1775770261819,-564.98,0.00020273,18]
[420201340,1775770261829,-505.46,0.00020273,18]
[420201341,1775770261852,-512.02,0.00020273,18]
[420201342,1775770261864,-500.0,0.00020273,18]
[420201343,1775770261896,-500.0,0.00020273,18]
[420201344,1775770261906,-500.0,0.00020273,18]
[420201345,1775770261920,-500.0,0.00020273,18]
[420201346,1775770261930,-969.23,0.00020273,18]
[420201347,1775770261940,-500.0,0.00020273,18]
[420201348,1775770261950,-500.0,0.00020273,18]
[420201349,1775770261971,-1815.3,0.00020273,18]
[420201350,1775770261981,-887.81,0.00020273,18]
[420201351,1775770261991,-500.0,0.00020273,18]
[420201352,1775770262017,-1988.8,0.00020273,18]
[420201353,1775770262037,-3094.25,0.00020273,18]
[420201354,1775770262052,-3186.71,0.00020273,18]
[420201355,1775770262081,-500.0,0.00020273,18]
[420201356,1775770262091,-467.22007489,0.00020273,18]
[420201386,1775771434634,-971.18603469,0.00013699,2]
[420201387,1775771434656,-28.81396531,0.00013699,2]
[420201388,1775771434665,-381.89941014,0.00013699,2]
[420201389,1775771434684,-618.10058986,0.00013699,2]
[420201390,1775771434701,-146.95996118,0.00014135,82]
[420201391,1775771434716,-153.04003882,0.00014135,82]
[420201392,1775771434725,-177.0,0.00015917,2]
[420201393,1775771434745,-64.43746696,0.00016438,2]
[420201394,1775771434756,-235.56253304,0.00016438,2]
[420201395,1775771434769,-204.0,0.00017917,2]
[420201396,1775771434781,-330.0,0.00017964,2]
[420201397,1775771434804,-778.78828482,0.00018978,2]
[420201398,1775771434816,-675.42364712,0.00018978,2]
[420201491,1775771438750,-575.8249803,0.00018978,2]
[420201492,1775771438765,-604.05276631,0.00018978,2]
[420201493,1775771438775,-227.84242489,0.00019077,2]
[420201494,1775771438790,-500.0,0.00019077,2]
[420201495,1775771438800,-98.06008379,0.00019077,2]
[420201647,1775771441245,-401.93991621,0.00019077,2]
[420201649,1775771441256,-11194.82959521,0.00019078,2]
[420201651,1775771441282,-1192.67223071,0.00019078,2]
[420201654,1775771441301,-3850.27509618,0.00019078,2]
[420201815,1775771443939,-20040.438993,0.00019078,2]
[420201818,1775771443950,-2323.8385751,0.00019078,2]
[420201820,1775771443961,-3884.64735648,0.00019078,2]
[420201943,1775771446665,-21044.62258366,0.00019078,2]
[420201945,1775771446677,-2393.71058033,0.00019078,2]
[420201947,1775771446739,-2150.738,0.0001917,2]
[420201949,1775771446771,-316.05597485,0.00019177,2]
[420201951,1775771446792,-500.0,0.00019177,2]
[420201953,1775771446802,-583.69330945,0.00019177,2]
[420201955,1775771446819,-583.69330945,0.00019177,2]
[420201957,1775771446828,-583.69330945,0.00019177,2]
[420201959,1775771446838,-583.69330945,0.00019177,2]
[420201961,1775771446847,-583.69330945,0.00019177,2]
[420201964,1775771446862,-197.18463507,0.00019177,2]
[420201966,1775771446872,-583.69330945,0.00019177,2]
[420201968,1775771446890,-500.0,0.00019177,2]
[420201970,1775771446900,-500.0,0.00019177,2]
[420201972,1775771446919,-583.69330945,0.00019177,2]
[420201974,1775771446929,-583.69330945,0.00019177,2]
[420201976,1775771446942,-583.69330945,0.00019177,2]
[420201978,1775771446956,-583.69330945,0.00019177,2]
[420201980,1775771446977,-1342.4451425,0.00019177,2]
[420201982,1775771446987,-500.0,0.00019177,2]
[420201984,1775771447010,-1342.4451425,0.00019177,2]
[420201986,1775771447020,-1342.4451425,0.00019177,2]
[420201988,1775771447039,-173.91224221,0.00019177,2]
[420201990,1775771447049,-1342.4451425,0.00019177,2]
[420201992,1775771447074,-500.0,0.00019177,2]
[420201994,1775771447084,-1342.4451425,0.00019177,2]
[420201997,1775771447103,-500.0,0.00019177,2]
[420201999,1775771447113,-1342.4451425,0.00019177,2]
[420202000,1775771447126,-1370.84302051,0.00019177,2]
[420202002,1775771447138,-1370.84302051,0.00019177,2]
[420202004,1775771447157,-1370.84302051,0.00019177,2]
[420202006,1775771447167,-1370.84302051,0.00019177,2]
[420202008,1775771447187,-1590.1779038,0.00019177,2]
[420202010,1775771447196,-1590.1779038,0.00019177,2]
[420202012,1775771447206,-500.0,0.00019178,18]
[420202014,1775771447224,-571.85,0.00019178,18]
[420202016,1775771447234,-500.0,0.00019178,18]
[420202018,1775771447251,-369.62070331,0.00019178,18]
[420202121,1775772632473,-275.752,9.9e-05,2]
[420202122,1775772632518,-154.72190936,0.0001,2]
[420202123,1775772632560,-500.0,0.00010199,2]
[420202124,1775772632600,-79.16272019,0.00010199,2]
[420202125,1775772632640,-335.68974511,0.00010199,2]
[420202126,1775772632671,-189.80411173,0.00010199,2]
[420202127,1775772632683,-296.92009493,0.00010199,2]
[420202128,1775772632707,-13.27579334,0.00010199,2]
[420202129,1775772632718,-4982.61830177,0.000102,5]
[420202130,1775772632732,-1793.30073341,0.000102,5]
[420202131,1775772632751,-295.30926659,0.000102,5]
[420202214,1775772638923,-3091.13165691,0.000102,5]
[420202223,1775772639101,-449.14612763,0.000102,5]
[420202344,1775772641443,-361.545,0.000102,5]
[420202347,1775772641469,-1075.08886253,0.000102,5]
[420202405,1775772643798,-1045.83020362,0.000102,5]
[420202408,1775772643810,-3654.16979638,0.000102,5]
[420202518,1775772646683,-43308.28951447,0.000102,5]
[420202519,1775772646693,-300.0,0.00010403,2]
[420202520,1775772646708,-300.0,0.00010403,2]
[420202521,1775772646719,-300.0,0.00010403,2]
[420202522,1775772646729,-300.0,0.00010403,2]
[420202523,1775772646742,-300.0,0.00010403,2]
[420202524,1775772646766,-300.0,0.00010403,2]
[420202525,1775772646777,-300.0,0.00010403,2]
[420202526,1775772646802,-300.0,0.00010403,2]
[420202527,1775772646811,-300.0,0.00010403,2]
[420202528,1775772646828,-300.0,0.00010403,2]
[420202529,1775772646843,-300.0,0.00010403,2]
[420202530,1775772646853,-300.0,0.00010403,2]
[420202531,1775772646868,-300.0,0.00010403,2]
[420202532,1775772646894,-300.0,0.00010403,2]
[420202533,1775772646908,-300.0,0.00010403,2]
[420202534,1775772646930,-600.0,0.00010403,2]
[420202535,1775772646954,-720.0,0.00011443,2]
[420202536,1775772646965,-154.72190936,0.0001205,7]
[420202537,1775772646991,-177.0,0.000121,2]
[420202538,1775772647016,-864.0,0.00012588,2]
[420202539,1775772647026,-1000.0,0.00013699,2]
[420202540,1775772647052,-1000.0,0.00013846,2]
[420202541,1775772647061,-204.0,0.000141,2]
[420202542,1775772647081,-154.72190936,0.000141,7]
[420202543,1775772647113,-1909.998488,0.00015,2]
[420202544,1775772647140,-1000.0,0.00015231,2]
[420202545,1775772647153,-244.0,0.00015231,2]
[420202546,1775772647165,-231.0,0.000161,2]
[420202547,1775772647175,-154.72190936,0.00016149,14]
[420202548,1775772647187,-300.0,0.00016438,2]
[420202549,1775772647202,-1000.0,0.00016754,2]
[420202551,1775772647215,-492.0,0.00016754,2]
[420202552,1775772647226,-6691.5653398,0.00017832,2]
[420202554,1775772647237,-330.0,0.00017964,2]
[420202555,1775772647258,-258.0,0.000181,2]
[420202556,1775772647269,-154.72190936,0.00018199,30]
[420202557,1775772647282,-1000.0,0.0001843,2]
[420202558,1775772647301,-791.0,0.0001843,2]
[420202559,1775772647391,-151.5,0.00018704,2]
[420202560,1775772647446,-298.5,0.00018704,2]
[420202561,1775772647456,-151.5,0.00018793,2]
[420202562,1775772647478,-151.5,0.00018793,2]
[420202563,1775772647488,-151.5,0.00018793,2]
[420202564,1775772647498,-221.1372934,0.00018793,2]
[420202565,1775772647515,-200.0,0.00018793,2]
[420202566,1775772647525,-180.71298646,0.00018858,2]
[420202567,1775772647531,-366.03903988,0.00018877,2]
[420202568,1775772647538,-366.03903985,0.00018883,2]
[420202569,1775772647545,-366.03903985,0.00018889,2]
[420202570,1775772647562,-915.28764124,0.00018892,2]
[420202571,1775772647574,-366.03903985,0.00018894,2]
[420202572,1775772647583,-366.03903985,0.000189,2]
[420202573,1775772647604,-500.0,0.00018977,2]
[420202574,1775772647618,-500.0,0.00018977,2]
[420202575,1775772647628,-500.0,0.00018977,2]
[420202576,1775772647638,-355.02386471,0.00018977,2]
[420202577,1775772647647,-500.0,0.00018977,2]
[420202578,1775772647659,-500.0,0.00018977,2]
[420202579,1775772647670,-500.0,0.00018977,2]
[420202580,1775772647680,-500.0,0.00018977,2]
[420202581,1775772647690,-500.0,0.00018977,2]
[420202582,1775772647702,-500.0,0.00018977,2]
[420202583,1775772647733,-415.3573086,0.00018977,2]
[420202584,1775772647743,-500.0,0.00018977,2]
[420202585,1775772647762,-500.0,0.00018977,2]
[420202586,1775772647774,-500.0,0.00018977,2]
[420202587,1775772647785,-500.0,0.00018977,2]
[420202588,1775772647801,-309.755542,0.00018977,2]
[420202589,1775772647811,-1153.09173241,0.00018977,2]
[420202590,1775772647823,-1153.09173241,0.00018977,2]
[420202591,1775772647834,-1153.09173241,0.00018977,2]
[420202592,1775772647851,-1153.09173241,0.00018977,2]
[420202593,1775772647861,-1153.09173241,0.00018977,2]
[420202594,1775772647875,-1153.09173241,0.00018977,2]
[420202595,1775772647890,-1192.71534792,0.00018977,2]
[420202596,1775772647908,-1192.71534792,0.00018977,2]
[420202597,1775772647918,-1192.71534792,0.00018977,2]
[420202598,1775772647935,-1192.71534792,0.00018977,2]
[420202599,1775772647946,-1192.71534792,0.00018977,2]
[420202600,1775772647956,-1494.2072831,0.00018977,2]
[420202601,1775772647976,-1494.2072831,0.00018977,2]
[420202602,1775772647985,-1192.71534792,0.00018977,2]
[420202603,1775772648006,-320352.68468265,0.00018978,2]
[420202611,1775772648239,-341742.51221727,0.00018978,2]
[420202612,1775772648249,-559.18,0.00019,2]
[420202613,1775772648259,-209.595,0.00019077,2]
[420202614,1775772648268,-455.5310146,0.00019122,2]
[420202615,1775772648278,-1849.4753,0.00019178,18]
[420202616,1775772648290,-1849.4753,0.00019178,18]
[420202617,1775772648302,-739.7984,0.00019178,18]
[420202618,1775772648312,-1479.5761,0.00019178,18]
[420202619,1775772648321,-1479.5761,0.00019178,18]
[420202620,1775772648333,-500.0,0.00019178,18]
[420202621,1775772648344,-767.95,0.00019178,18]
[420202622,1775772648361,-500.0,0.00019178,18]
[420202623,1775772648370,-500.0,0.00019178,18]
[420202624,1775772648381,-592.68,0.00019178,18]
[420202625,1775772648399,-503.16,0.00019178,18]
[420202626,1775772648413,-500.0,0.00019178,18]
[420202627,1775772648423,-500.0,0.00019178,18]
[420202628,1775772648452,-500.0,0.00019178,18]
[420202629,1775772648462,-500.0,0.00019178,18]
[420202630,1775772648477,-500.0,0.00019178,18]
[420202631,1775772648486,-500.0,0.00019178,18]
[420202632,1775772648495,-500.0,0.00019178,18]
[420202633,1775772648513,-500.0,0.00019178,18]
[420202634,1775772648522,-217.89882012,0.00019178,18]
[420202635,1775772648537,-579.15346897,0.00019178,18]
[420202636,1775772648550,-500.0,0.00019178,18]
[420202637,1775772648571,-500.0,0.00019178,18]
[420202638,1775772648580,-500.0,0.00019178,18]
[420202639,1775772648601,-500.0,0.00019178,18]
[420202640,1775772648610,-500.0,0.00019178,18]
[420202641,1775772648643,-500.0,0.00019178,18]
[420202642,1775772648670,-500.0,0.00019178,18]
[420202643,1775772648698,-500.0,0.00019178,18]
[420202644,1775772648721,-500.0,0.00019178,18]
[420202645,1775772648730,-500.0,0.00019178,18]
[420202646,1775772648753,-500.0,0.00019178,18]
[420202647,1775772648763,-500.0,0.00019178,18]
[420202648,1775772648784,-555.72365196,0.00019178,18]
[420202649,1775772648794,-500.0,0.00019178,18]
[420202650,1775772648803,-500.0,0.00019178,18]
[420202651,1775772648813,-500.0,0.00019178,18]
[420202652,1775772648824,-500.0,0.00019178,18]
[420202653,1775772648837,-1927.12,0.00019178,18]
[420202654,1775772648846,-500.0,0.00019178,18]
[420202655,1775772648857,-294.85900961,0.00019178,18]
[420202656,1775772648873,-500.0,0.00019178,18]
[420202657,1775772648894,-500.0,0.00019178,18]
[420202658,1775772648913,-500.0,0.00019178,18]
[420202659,1775772648929,-500.0,0.00019178,18]
[420202660,1775772648946,-500.0,0.00019178,18]
[420202661,1775772648982,-500.0,0.00019178,18]
[420202662,1775772649000,-574.34,0.00019178,18]
[420202663,1775772649073,-767.3,0.00019178,18]
[420202664,1775772649147,-500.0,0.00019178,18]
[420202665,1775772649196,-500.0,0.00019178,18]
[420202666,1775772649215,-500.0,0.00019178,18]
[420202667,1775772649254,-500.0,0.00019178,18]
[420202668,1775772649263,-500.0,0.00019178,18]
[420202669,1775772649295,-500.0,0.00019178,18]
[420202670,1775772649354,-500.0,0.00019178,18]
[420202671,1775772649381,-1574.47,0.00019178,18]
[420202672,1775772649391,-500.0,0.00019178,18]
[420202673,1775772649415,-500.0,0.00019178,18]
[420202674,1775772649425,-500.0,0.00019178,18]
[420202675,1775772649446,-500.0,0.00019178,18]
[420202676,1775772649456,-695.49,0.00019178,18]
[420202677,1775772649465,-500.0,0.00019178,18]
[420202678,1775772649479,-500.0,0.00019178,18]
[420202679,1775772649488,-500.0,0.00019178,18]
[420202680,1775772649498,-525.74,0.00019178,18]
[420202681,1775772649508,-500.0,0.00019178,18]
[420202682,1775772649516,-500.0,0.00019178,18]
[420202683,1775772649529,-629.92,0.00019178,18]
[420202684,1775772649542,-500.0,0.00019178,18]
[420202685,1775772649560,-245.94845782,0.00019178,18]
[420202686,1775772649569,-500.0,0.00019178,18]
[420202687,1775772649579,-777.87,0.00019178,18]
[420202688,1775772649597,-500.0,0.00019178,18]
[420202689,1775772649607,-500.0,0.00019178,18]
[420202690,1775772649616,-500.0,0.00019178,18]
[420202691,1775772649630,-789.02,0.00019178,18]
[420202692,1775772649643,-500.0,0.00019178,18]
[420202693,1775772649662,-816.68,0.00019178,18]
[420202694,1775772649672,-705.9,0.00019178,18]
[420202695,1775772649691,-500.0,0.00019178,18]
[420202696,1775772649700,-500.0,0.00019178,18]
[420202697,1775772649717,-818.93,0.00019178,18]
[420202698,1775772649726,-602.3,0.00019178,18]
[420202699,1775772649736,-271.69629978,0.00019178,18]
[420202700,1775772649750,-500.0,0.00019178,18]
[420202701,1775772649760,-500.0,0.00019178,18]
[420202702,1775772649769,-1649.3,0.00019178,18]
[420202703,1775772649779,-500.0,0.00019178,18]
[420202704,1775772649790,-974.47,0.00019178,18]
[420202705,1775772649800,-500.0,0.00019178,18]
[420202706,1775772649809,-500.0,0.00019178,18]
[420202707,1775772649818,-756.66,0.00019178,18]
[420202708,1775772649829,-500.0,0.00019178,18]
[420202709,1775772649840,-500.0,0.00019178,18]
[420202710,1775772649858,-500.0,0.00019178,18]
[420202711,1775772649867,-500.0,0.00019178,18]
[420202712,1775772649876,-549.79364885,0.00019178,18]
[420202713,1775772649896,-500.0,0.00019178,18]
[420202714,1775772649905,-717.34,0.00019178,18]
[420202715,1775772649925,-500.0,0.00019178,18]
[420202716,1775772649935,-1379.41,0.00019178,18]
[420202717,1775772649956,-500.0,0.00019178,18]
[420202718,1775772649965,-500.0,0.00019178,18]
[420202719,1775772649974,-1460.71,0.00019178,18]
[420202720,1775772649993,-500.0,0.00019178,18]
[420202721,1775772650002,-200.0,0.00019178,2]
[420202722,1775772650023,-500.0,0.00019178,18]
[420202723,1775772650033,-1971.44,0.00019178,18]
[420202724,1775772650042,-500.0,0.00019178,18]
[420202725,1775772650054,-500.0,0.00019178,18]
[420202726,1775772650075,-1489.66,0.00019178,18]
[420202727,1775772650084,-658.17,0.00019178,18]
[420202728,1775772650095,-500.0,0.00019178,18]
[420202729,1775772650116,-500.0,0.00019178,18]
[420202730,1775772650125,-500.0,0.00019178,18]
[420202731,1775772650146,-1020.96,0.00019178,18]
[420202732,1775772650158,-1221.44,0.00019178,18]
[420202733,1775772650185,-500.0,0.00019178,18]
[420202734,1775772650205,-500.0,0.00019178,18]
[420202735,1775772650220,-500.0,0.00019178,18]
[420202736,1775772650248,-500.0,0.00019178,18]
[420202737,1775772650281,-500.0,0.00019178,18]
[420202738,1775772650292,-500.0,0.00019178,18]
[420202739,1775772650334,-584.96,0.00019178,18]
[420202740,1775772650365,-500.0,0.00019178,18]
[420202741,1775772650380,-548.02,0.00019178,18]
[420202742,1775772650389,-500.0,0.00019178,18]
[420202743,1775772650399,-1201.13,0.00019178,18]
[420202744,1775772650419,-3396.57,0.00019178,18]
[420202745,1775772650428,-500.0,0.00019178,18]
[420202746,1775772650444,-1367.46,0.00019178,18]
[420202747,1775772650459,-2711.15,0.00019178,18]
[420202748,1775772650483,-1039.52,0.00019178,18]
[420202749,1775772650492,-500.0,0.00019178,18]
[420202750,1775772650518,-500.0,0.00019178,18]
[420202751,1775772650545,-676.82,0.00019178,18]
[420202752,1775772650559,-514.49,0.00019178,18]
[420202753,1775772650591,-500.0,0.00019178,18]
[420202754,1775772650617,-500.0,0.00019178,18]
[420202755,1775772650636,-500.0,0.00019178,18]
[420202756,1775772650646,-500.0,0.00019178,18]
[420202757,1775772650656,-2197.9,0.00019178,18]
[420202758,1775772650668,-819.83,0.00019178,18]
[420202759,1775772650679,-1489.76,0.00019178,18]
[420202760,1775772650700,-500.0,0.00019178,18]
[420202761,1775772650710,-500.0,0.00019178,18]
[420202762,1775772650728,-500.0,0.00019178,7]
[420202763,1775772650738,-1156.72,0.00019178,18]
[420202764,1775772650747,-561.35,0.00019178,18]
[420202765,1775772650759,-500.0,0.00019178,18]
[420202766,1775772650771,-500.0,0.00019178,18]
[420202767,1775772650783,-500.0,0.00019178,18]
[420202768,1775772650795,-500.0,0.00019178,18]
[420202769,1775772650805,-500.0,0.00019178,18]
[420202770,1775772650816,-1994.09,0.00019178,18]
[420202771,1775772650825,-1417.33,0.00019178,18]
[420202772,1775772650839,-500.0,0.00019178,2]
[420202773,1775772650865,-500.0,0.00019178,18]
[420202774,1775772650874,-500.0,0.00019178,18]
[420202775,1775772650898,-1209.43,0.00019178,18]
[420202776,1775772650907,-500.0,0.00019178,18]
[420202777,1775772650929,-500.0,0.00019178,18]
[420202778,1775772650949,-500.0,0.00019178,18]
[420202779,1775772650958,-500.0,0.00019178,18]